bitfinex-derivatives/quotes_BTCF0:USTF0_20250406
["timestamp","ask_amount","ask_price","bid_price","bid_amount"]
[1743970303205,0.00240001,79603.0,79597.0,0.30494022]
[1743970303499,0.001,79603.0,79602.0,0.3608]
[1743970303901,0.001,79603.0,79602.0,0.5108]
[1743970304303,0.00018833,79611.0,79602.0,0.5108]
[1743970304502,0.00018833,79611.0,79610.0,0.3608]
[1743970305498,0.00018833,79611.0,79610.0,0.29814022]
[1743970305692,0.00118833,79611.0,79610.0,0.29814022]
[1743970306404,0.00218833,79611.0,79610.0,0.29814022]
[1743970306905,0.00118833,79611.0,79610.0,0.29814022]
[1743970307498,0.00018833,79611.0,79610.0,0.29914022]
[1743970308209,0.1865,79621.0,79610.0,0.44814022]
[1743970308501,0.0016,79621.0,79620.0,0.29814022]
[1743970308709,0.00152,79621.0,79620.0,0.29814022]
[1743970308901,0.3829,79628.0,79620.0,0.29814022]
[1743970309102,0.38446001,79628.0,79620.0,0.29814022]
[1743970309298,0.00011385,79627.0,79621.0,0.3795]
[1743970309502,0.3829,79628.0,79621.0,0.3795]
[1743970309708,0.3928,79627.0,79621.0,0.3795]
[1743970310209,0.39432,79627.0,79621.0,0.3795]
[1743970310803,0.3608,79622.0,79611.0,0.22745158]
[1743970311004,0.3958,79621.0,79612.0,0.3655]
[1743970311198,0.3958,79621.0,79611.0,0.22745158]
[1743970311596,0.3958,79621.0,79610.0,0.63653158]
[1743970312005,0.3958,79621.0,79610.0,0.63645158]
[1743970312908,0.3958,79621.0,79611.0,0.01694287]
[1743970313108,0.3958,79621.0,79612.0,0.01694287]
[1743970313312,0.3608,79615.0,79613.0,0.01694287]
[1743970313513,0.3977,79614.0,79610.0,0.63645158]
[1743970313709,0.3977,79614.0,79611.0,0.01695681]
[1743970313907,0.3977,79614.0,79612.0,0.01695681]
[1743970314210,0.3977,79614.0,79613.0,0.01695681]
[1743970314412,0.3978468,79614.0,79613.0,0.01695681]
[1743970314616,0.3978468,79614.0,79610.0,0.63645158]
[1743970314617,0.39922,79614.0,79610.0,0.63645158]
[1743970314814,0.39922,79614.0,79610.0,0.409]
[1743970315111,0.00152,79614.0,79610.0,0.409]
[1743970315314,0.3798,79629.0,79611.0,0.1951]
[1743970315811,0.3798,79629.0,79619.0,0.22745158]
[1743970316010,0.00015323,79628.0,79620.0,0.1951]
[1743970316213,0.00013233,79627.0,79620.0,0.1951]
[1743970316514,0.3798,79628.0,79620.0,0.1951]
[1743970317214,0.38132,79628.0,79620.0,0.20463525]
[1743970317617,0.38232,79628.0,79620.0,0.14197547]
[1743970317815,0.38232,79628.0,79621.0,0.188]
[1743970318515,0.38132,79628.0,79621.0,0.188]
[1743970319910,0.00012831,79627.0,79621.0,0.188]
[1743970320112,0.0001127,79626.0,79621.0,0.188]
[1743970320309,0.00012931,79625.0,79621.0,0.188]
[1743970320505,0.00015943,79624.0,79621.0,0.188]
[1743970320817,0.3808,79628.0,79621.0,0.12534022]
[1743970321017,0.3608,79622.0,79610.0,0.63645158]
[1743970321217,0.3917,79621.0,79610.0,0.63645158]
[1743970321808,0.3917,79621.0,79610.0,0.64610886]
[1743970322114,0.39322,79621.0,79610.0,0.64610886]
[1743970322819,0.3608,79611.0,79610.0,0.64610886]
[1743970323115,0.3608,79611.0,79610.0,0.41965728]
[1743970323317,0.3608,79611.0,79610.0,0.41]
[1743970323709,0.3608,79611.0,79610.0,0.34734022]
[1743970324014,0.3608,79611.0,79610.0,0.34634022]
[1743970324215,0.3608,79611.0,79607.0,2.17804742]
[1743970324419,0.3937,79610.0,79607.0,2.17796742]
[1743970324619,0.00013033,79609.0,79603.0,0.00018833]
[1743970324804,0.5856,79610.0,79598.0,8e-05]
[1743970324805,0.3608,79604.0,79598.0,8e-05]
[1743970325010,0.3608,79600.0,79597.0,0.37256742]
[1743970325319,0.1951,79599.0,79597.0,0.37256742]
[1743970326617,0.0001622,79598.0,79597.0,0.37256742]
[1743970326819,0.00018833,79606.0,79598.0,0.26539776]
[1743970327117,0.00018833,79606.0,79602.0,0.3608]
[1743970327315,0.00018833,79606.0,79603.0,0.20251434]
[1743970327514,0.00018833,79606.0,79604.0,0.01701434]
[1743970327719,0.00178833,79606.0,79605.0,0.01701434]
[1743970328108,0.39958833,79606.0,79605.0,0.01701434]
[1743970328305,0.58118833,79606.0,79605.0,0.01701434]
[1743970329516,0.58133583,79606.0,79605.0,0.01701434]
[1743970329722,0.58118833,79606.0,79591.0,0.3154121]
[1743970330717,0.00014934,79605.0,79591.0,0.3154121]
[1743970330920,0.57958833,79606.0,79591.0,0.3154121]
[1743970331112,0.00015885,79605.0,79591.0,0.3154121]
[1743970331423,0.00152,79605.0,79591.0,0.3154121]
[1743970331615,0.38042,79605.0,79591.0,0.3154121]
[1743970332719,0.19042,79605.0,79599.0,0.29799776]
[1743970332920,0.1124398,79620.0,79600.0,0.2761]
[1743970333124,0.1124398,79620.0,79610.0,0.15156575]
[1743970333319,0.35830513,79621.0,79611.0,0.4642]
[1743970333521,0.14768356,79625.0,79620.0,0.3608]
[1743970333726,0.14768356,79625.0,79621.0,0.2762]
[1743970334419,0.1924,79624.0,79621.0,0.2762]
[1743970334725,0.14768356,79625.0,79621.0,0.2762]
[1743970335225,0.14768356,79625.0,79621.0,0.27684]
[1743970335828,0.001,79624.0,79621.0,0.21403776]
[1743970336528,0.393,79624.0,79621.0,0.00064]
[1743970336727,0.39412001,79624.0,79621.0,0.00064]
[1743970336923,0.39512001,79624.0,79621.0,0.00164]
[1743970337220,0.39412001,79624.0,79621.0,0.00164]
[1743970337621,0.00014774,79623.0,79621.0,0.00164]
[1743970337820,0.00015236,79622.0,79621.0,0.001]
[1743970338129,0.00104001,79622.0,79621.0,0.001]
[1743970338432,0.001156,79622.0,79621.0,0.001]
[1743970338625,0.38404001,79622.0,79621.0,0.001]
[1743970338926,0.53404001,79622.0,79613.0,0.30995351]
[1743970339231,0.3608,79614.0,79613.0,0.31059351]
[1743970339418,0.36184001,79614.0,79613.0,0.30995351]
[1743970340128,0.36184001,79614.0,79613.0,0.31095351]
[1743970340931,0.36184001,79614.0,79613.0,0.001]
[1743970341237,0.36284001,79614.0,79613.0,0.001]
[1743970341530,0.36384001,79614.0,79613.0,0.001]
[1743970341724,0.36384001,79614.0,79613.0,0.01825369]
[1743970341921,0.36384001,79614.0,79601.0,0.3819]
[1743970342123,0.3608,79605.0,79601.0,0.3819]
[1743970342322,0.39198807,79604.0,79601.0,0.3819]
[1743970342523,0.3919,79604.0,79601.0,0.3819]
[1743970342723,0.39294001,79604.0,79601.0,0.3819]
[1743970342923,0.00011317,79603.0,79601.0,0.3819]
[1743970343128,0.3919,79604.0,79601.0,0.3819]
[1743970343333,0.39294001,79604.0,79601.0,0.3819]
[1743970343525,0.39294001,79604.0,79600.0,0.15156575]
[1743970343726,0.39294001,79604.0,79599.0,1.8054]
[1743970343929,0.0001134,79603.0,79599.0,1.8054]
[1743970344126,0.001,79603.0,79599.0,8e-05]
[1743970344333,0.20084001,79603.0,79599.0,8e-05]
[1743970344631,0.19984001,79603.0,79590.0,0.00106797]
[1743970344833,0.3608,79594.0,79590.0,0.00106797]
[1743970345035,0.3608,79594.0,79582.0,0.38534663]
[1743970345340,0.3608,79585.0,79582.0,0.38534663]
[1743970345526,0.1988,79584.0,79582.0,0.38534663]
[1743970345727,0.1988,79584.0,79582.0,0.44817202]
[1743970345938,0.19992001,79584.0,79582.0,0.38534663]
[1743970346531,0.3608,79583.0,79582.0,0.38534663]
[1743970346829,0.36188,79583.0,79582.0,0.38534663]
[1743970347324,0.54728,79583.0,79582.0,0.38534663]
[1743970347734,0.54828,79583.0,79582.0,0.38534663]
[1743970347934,0.54828,79583.0,79582.0,0.32254439]
[1743970348136,0.69928,79583.0,79575.0,0.48837948]
[1743970348435,0.3608,79576.0,79575.0,0.48837948]
[1743970348835,0.37013053,79576.0,79575.0,0.48837948]
[1743970350037,0.37113053,79576.0,79574.0,0.00106818]
[1743970350226,0.5639,79575.0,79574.0,0.00106818]
[1743970350428,0.56508014,79575.0,79574.0,0.00106818]
[1743970350629,0.57339248,79575.0,79574.0,0.00106818]
[1743970350823,0.57325861,79575.0,79574.0,0.00106818]
[1743970351130,0.57325861,79575.0,79568.0,1.74370594]
[1743970351324,0.3608,79569.0,79568.0,1.74370594]
[1743970351737,0.38330488,79569.0,79568.0,1.74370594]
[1743970351939,0.38438488,79569.0,79568.0,1.74370594]
[1743970353339,0.02458488,79569.0,79568.0,1.74370594]
[1743970353540,0.02350488,79569.0,79568.0,1.74370594]
[1743970353938,0.38530488,79569.0,79568.0,1.74370594]
[1743970354135,0.38634489,79569.0,79568.0,1.6809037]
[1743970355440,0.02554489,79569.0,79568.0,1.6809037]
[1743970355641,0.02450488,79569.0,79568.0,1.6809037]
[1743970355840,0.02450488,79569.0,79568.0,2.0572037]
[1743970357139,0.02450488,79569.0,79568.0,1.99440146]
[1743970358943,0.02450488,79569.0,79568.0,1.80790146]
[1743970359244,0.02450488,79569.0,79568.0,1.61810146]
[1743970359639,0.02464782,79569.0,79568.0,1.61810146]
[1743970359839,0.02450488,79569.0,79568.0,1.61810146]
[1743970360143,0.02554489,79569.0,79568.0,1.55593922]
[1743970361329,0.02554489,79569.0,79568.0,0.00064]
[1743970361537,0.17554489,79569.0,79562.0,8e-05]
[1743970361741,0.17554489,79569.0,79550.0,8e-05]
[1743970361742,0.3608,79563.0,79550.0,8e-05]
[1743970361934,0.3608,79553.0,79548.0,0.06276649]
[1743970362229,0.95179072,79552.0,79544.0,8e-05]
[1743970362442,0.3608,79545.0,79544.0,0.00072]
[1743970362841,0.43187167,79545.0,79544.0,0.00072]
[1743970363244,0.43187167,79545.0,79539.0,0.12898637]
[1743970363439,0.3884,79544.0,79539.0,0.00072]
[1743970363635,0.38984,79544.0,79539.0,0.00072]
[1743970363831,0.023703,79543.0,79539.0,0.00072]
[1743970364138,0.00018846,79558.0,79542.0,0.3608]
[1743970364332,0.00018846,79558.0,79548.0,0.22753549]
[1743970364530,0.00018846,79558.0,79549.0,0.1919]
[1743970364741,0.04381086,79557.0,79549.0,0.19254]
[1743970364939,0.3884,79556.0,79549.0,0.19254]
[1743970365143,0.38984,79556.0,79549.0,0.00064]
[1743970365347,0.00118508,79555.0,79546.0,0.15180047]
[1743970365740,0.3795,79554.0,79546.0,0.15180047]
[1743970366134,0.00118516,79553.0,79546.0,0.08899823]
[1743970366335,0.00118516,79553.0,79547.0,0.1984]
[1743970366536,0.1905,79552.0,79547.0,0.1984]
[1743970366732,0.3736,79552.0,79547.0,0.1984]
[1743970366938,0.05092163,79551.0,79548.0,0.1869]
[1743970367343,0.19066204,79550.0,79549.0,0.1989]
[1743970367643,0.19202,79550.0,79549.0,0.1989]
[1743970367840,0.19320516,79550.0,79549.0,0.1989]
[1743970369247,0.19320516,79550.0,79549.0,0.13609776]
[1743970370036,0.00270516,79550.0,79549.0,0.13609776]
[1743970370346,0.00118516,79550.0,79549.0,0.13609776]
[1743970370536,0.00018846,79558.0,79549.0,0.49689776]
[1743970370939,0.04144062,79557.0,79549.0,0.49689776]
[1743970371550,0.04288062,79557.0,79549.0,0.49689776]
[1743970371742,0.3772,79556.0,79542.0,0.3608]
[1743970371950,0.3608,79547.0,79539.0,0.06172258]
[1743970372143,0.3772,79546.0,79539.0,0.06172258]
[1743970372446,0.39049275,79546.0,79541.0,0.23484547]
[1743970373542,0.39049275,79546.0,79542.0,0.1943]
[1743970374048,0.0001155,79545.0,79543.0,0.1959]
[1743970374249,0.00011623,79544.0,79543.0,0.1959]
[1743970374552,0.3782,79546.0,79544.0,0.1943]
[1743970374940,0.0615889,79545.0,79544.0,0.1943]
[1743970375346,0.0615889,79545.0,79542.0,0.003]
[1743970375550,0.3977,79544.0,79543.0,0.002]
[1743970375958,0.40125603,79544.0,79543.0,0.002]
[1743970376550,0.40225603,79544.0,79543.0,0.002]
[1743970377753,0.40225603,79544.0,79539.0,0.25662258]
[1743970377754,0.40125603,79544.0,79539.0,0.06172258]
[1743970377950,0.00014795,79543.0,79538.0,1.80628]
[1743970378152,0.40125603,79544.0,79538.0,1.80628]
[1743970378353,0.06870135,79542.0,79538.0,1.74347776]
[1743970378547,0.00144,79542.0,79539.0,0.1853]
[1743970378742,0.00015464,79541.0,79540.0,0.1983]
[1743970378956,0.002,79544.0,79541.0,0.1853]
[1743970379255,0.001,79544.0,79542.0,0.1983]
[1743970379455,0.1805,79543.0,79542.0,0.1983]
[1743970379755,0.24901569,79543.0,79542.0,0.1983]
[1743970379953,0.60981569,79543.0,79539.0,0.06299712]
[1743970380155,0.185,79542.0,79538.0,1.74547776]
[1743970380359,0.18652,79542.0,79538.0,1.74547776]
[1743970380557,0.19852716,79541.0,79539.0,0.1853]
[1743970380753,0.20004716,79541.0,79539.0,0.1853]
[1743970380950,0.185,79540.0,79539.0,0.1853]
[1743970381457,0.25370116,79540.0,79538.0,1.74230751]
[1743970381655,0.1926,79539.0,79538.0,1.74230751]
[1743970382059,0.20089816,79539.0,79538.0,1.74230751]
[1743970382247,0.38629816,79539.0,79538.0,1.74230751]
[1743970382449,0.38773816,79539.0,79538.0,1.74230751]
[1743970382851,0.3878402,79539.0,79538.0,1.74230751]
[1743970383047,0.38773816,79539.0,79538.0,1.74230751]
[1743970383363,0.38873816,79539.0,79538.0,1.74230751]
[1743970383658,0.38887482,79539.0,79538.0,1.74230751]
[1743970383861,0.38888407,79539.0,79538.0,1.74230751]
[1743970384059,0.00936299,79565.0,79538.0,2.10410751]
[1743970384263,0.3748,79551.0,79549.0,0.3608]
[1743970384563,0.37584001,79551.0,79550.0,0.11949776]
[1743970384860,0.04143829,79550.0,79548.0,0.3608]
[1743970385456,0.3815,79549.0,79548.0,0.3608]
[1743970385871,0.38505558,79549.0,79548.0,0.3608]
[1743970386652,0.00455558,79549.0,79548.0,0.3618]
[1743970387055,0.00455558,79549.0,79548.0,0.5705]
[1743970387257,0.00455558,79549.0,79548.0,0.5725]
[1743970387559,0.00455558,79549.0,79548.0,0.50969776]
[1743970388166,0.37825558,79549.0,79548.0,0.50969776]
[1743970388550,0.37937559,79549.0,79548.0,0.69839776]
[1743970388764,0.38037559,79549.0,79548.0,0.70139776]
[1743970388964,0.38037559,79549.0,79548.0,0.51069776]
[1743970389654,0.3608,79581.0,79548.0,0.51069776]
[1743970389850,0.3608,79581.0,79557.0,0.58856257]
[1743970390155,0.36156,79567.0,79558.0,0.5757]
[1743970390356,0.00944291,79566.0,79558.0,0.76618]
[1743970390557,0.38062291,79566.0,79558.0,0.70337776]
[1743970390757,0.38062291,79566.0,79558.0,0.55748]
[1743970391557,0.38062291,79566.0,79564.0,0.3608]
[1743970391762,0.38162291,79566.0,79565.0,0.3652]
[1743970391956,0.38162291,79566.0,79565.0,0.36584]
[1743970392358,0.38162291,79566.0,79565.0,0.00064]
[1743970393361,0.38162291,79566.0,79565.0,0.00364]
[1743970393563,0.38062291,79566.0,79564.0,0.30463776]
[1743970393764,0.3608,79565.0,79564.0,0.00364]
[1743970393962,0.55314,79565.0,79564.0,0.003]
[1743970394153,0.92744,79565.0,79559.0,8e-05]
[1743970394353,0.93095903,79565.0,79554.0,0.00018858]
[1743970394557,0.93095903,79565.0,79554.0,0.00082858]
[1743970395153,0.93095903,79565.0,79564.0,0.003]
[1743970395561,1.08095903,79565.0,79564.0,0.003]
[1743970395764,1.08095903,79565.0,79558.0,0.37283335]
[1743970395963,0.93095903,79565.0,79558.0,0.37283335]
[1743970396568,0.93195903,79565.0,79558.0,0.31003111]
[1743970397071,0.93295903,79565.0,79558.0,0.31003111]
[1743970397570,0.93295903,79565.0,79558.0,0.31303111]
[1743970398674,0.93295903,79565.0,79558.0,0.003]
[1743970399674,0.93295903,79565.0,79548.0,0.30134634]
[1743970399860,0.3608,79558.0,79548.0,0.30134634]
[1743970400062,0.3843,79557.0,79548.0,0.30134634]
[1743970400262,0.41239293,79557.0,79548.0,0.30134634]
[1743970401159,0.00011762,79556.0,79549.0,0.1824]
[1743970401360,0.00084,79556.0,79549.0,0.1824]
[1743970401561,0.00470411,79555.0,79549.0,0.18304]
[1743970401967,0.3836,79554.0,79549.0,0.18304]
[1743970402162,0.3836,79554.0,79549.0,0.1824]
[1743970402368,0.00118512,79553.0,79549.0,0.1824]
[1743970402569,0.00118512,79553.0,79549.0,0.11959776]
[1743970402771,0.3836,79552.0,79549.0,0.11959776]
[1743970403169,0.00118515,79551.0,79549.0,0.11959776]
[1743970403772,0.3887,79550.0,79549.0,0.30129776]
[1743970404171,0.00118518,79550.0,79549.0,0.30129776]
[1743970404571,0.1958,79551.0,79549.0,0.30129776]
[1743970404780,0.1949,79550.0,79549.0,0.30129776]
[1743970404978,0.1949,79550.0,79549.0,0.11959776]
[1743970405179,0.23278271,79550.0,79548.0,0.30134634]
[1743970405369,0.1971,79549.0,79548.0,0.30134634]
[1743970405783,0.20065558,79549.0,79548.0,0.2385441]
[1743970406580,0.20165558,79549.0,79548.0,0.2385441]
[1743970406772,0.20349558,79549.0,79548.0,0.2385441]
[1743970407983,0.20349558,79549.0,79548.0,0.2392241]
[1743970408782,0.20349558,79549.0,79548.0,0.17642186]
[1743970411585,0.20349558,79549.0,79548.0,0.57672309]
[1743970411792,0.20362585,79549.0,79548.0,0.40098123]
[1743970411981,0.20349558,79549.0,79548.0,0.40098123]
[1743970414883,0.20349558,79549.0,79548.0,0.33817899]
[1743970416292,0.20364712,79549.0,79548.0,0.33817899]
[1743970416591,0.20349558,79549.0,79548.0,0.33817899]
[1743970417794,0.20349558,79549.0,79548.0,0.27537675]
[1743970419691,0.3608,79565.0,79548.0,0.63617675]
[1743970419884,0.3608,79565.0,79556.0,0.3608]
[1743970420085,0.3616,79565.0,79557.0,0.3813]
[1743970420280,0.00944183,79564.0,79557.0,0.3821]
[1743970420591,9.528e-05,79563.0,79557.0,0.3821]
[1743970420789,0.00084,79563.0,79557.0,0.31929776]
[1743970421094,0.00118487,79562.0,79557.0,0.31929776]
[1743970421286,0.00198487,79562.0,79557.0,0.31929776]
[1743970421486,0.3618,79565.0,79557.0,0.68009776]
[1743970421686,0.3608,79565.0,79557.0,0.68009776]
[1743970421884,0.001,79563.0,79557.0,0.68009776]
[1743970422088,0.00013515,79562.0,79557.0,0.68009776]
[1743970422289,0.00014181,79561.0,79557.0,0.68009776]
[1743970422482,0.00064,79561.0,79557.0,0.68009776]
[1743970423491,0.00064,79561.0,79557.0,0.31929776]
[1743970423791,0.00473949,79560.0,79554.0,0.08981453]
[1743970423983,0.00473949,79560.0,79554.0,0.00064]
[1743970423984,0.00553949,79560.0,79554.0,0.00064]
[1743970424185,0.3608,79555.0,79554.0,0.00064]
[1743970424498,0.3616,79555.0,79554.0,0.00064]
[1743970424687,0.38052171,79555.0,79554.0,0.00064]
[1743970425397,0.3626,79555.0,79554.0,0.00064]
[1743970426283,0.0018,79555.0,79554.0,0.19284]
[1743970426891,0.3883,79555.0,79554.0,0.13003776]
[1743970427292,0.3883,79555.0,79551.0,0.1924]
[1743970427893,0.3883,79555.0,79550.0,0.15181677]
[1743970428098,0.02721638,79554.0,79550.0,0.15181677]
[1743970428594,0.39140487,79553.0,79550.0,0.15181677]
[1743970428796,0.3913,79553.0,79547.0,0.36088]
[1743970429001,0.00355531,79552.0,79547.0,0.3608]
[1743970429194,0.00463531,79552.0,79547.0,0.3608]
[1743970429395,0.3763,79551.0,79547.0,0.3608]
[1743970429794,0.03314219,79550.0,79547.0,0.3608]
[1743970429995,0.03414219,79550.0,79545.0,0.44740002]
[1743970430193,0.03414219,79550.0,79544.0,8e-05]
[1743970430194,0.3608,79547.0,79544.0,8e-05]
[1743970430491,0.3608,79545.0,79531.0,0.52159439]
[1743970430698,0.7216,79532.0,79530.0,0.1]
[1743970431002,0.72340001,79532.0,79526.0,0.00106883]
[1743970431199,0.01659886,79531.0,79526.0,0.00106883]
[1743970431397,0.01835887,79531.0,79527.0,0.23612203]
[1743970431592,0.16835887,79531.0,79527.0,0.23612203]
[1743970432799,0.16935887,79531.0,79518.0,8e-05]
[1743970433102,0.3608,79524.0,79523.0,0.52830979]
[1743970433301,0.36267582,79524.0,79523.0,0.52830979]
[1743970433496,0.44321467,79524.0,79523.0,0.52830979]
[1743970433691,0.44326561,79524.0,79523.0,0.52830979]
[1743970433892,0.44325203,79524.0,79523.0,0.52830979]
[1743970434097,0.44312326,79524.0,79523.0,0.52830979]
[1743970434396,0.44312326,79524.0,79514.0,0.23587999]
[1743970434397,0.44412326,79524.0,79514.0,0.23587999]
[1743970434596,0.3608,79515.0,79514.0,0.23587999]
[1743970435001,0.39874857,79515.0,79514.0,0.23587999]
[1743970435497,0.39874857,79515.0,79514.0,0.41597999]
[1743970435800,0.40074857,79515.0,79514.0,0.41597999]
[1743970435989,0.40074857,79515.0,79514.0,0.35317775]
[1743970437401,0.40074857,79515.0,79514.0,0.40526206]
[1743970437803,0.40074857,79515.0,79514.0,0.22516206]
[1743970438607,0.34885059,79524.0,79514.0,0.42416206]
[1743970438808,0.34885059,79524.0,79515.0,0.2156848]
[1743970439105,0.06988779,79523.0,79515.0,0.15288256]
[1743970439497,0.3608,79516.0,79515.0,0.15288256]
[1743970439697,0.3608,79516.0,79515.0,0.53818256]
[1743970439907,0.37086304,79516.0,79515.0,0.3853]
[1743970441607,0.01006304,79516.0,79515.0,0.3853]
[1743970441812,0.37010303,79516.0,79515.0,0.3853]
[1743970442111,0.37186304,79516.0,79515.0,0.32249776]
[1743970443212,0.27286304,79516.0,79515.0,0.32449776]
[1743970443611,0.27010303,79516.0,79515.0,0.32449776]
[1743970443814,0.33999082,79516.0,79515.0,0.32449776]
[1743970444311,0.00276001,79516.0,79515.0,0.32449776]
[1743970444498,0.0977,79531.0,79515.0,0.32449776]
[1743970444705,0.19826001,79531.0,79515.0,0.32449776]
[1743970444904,0.24917052,79531.0,79521.0,0.15181677]
[1743970445207,0.24917052,79531.0,79522.0,0.12179776]
[1743970446411,0.24917052,79531.0,79522.0,0.12379776]
[1743970446911,0.05267052,79531.0,79525.0,0.3608]
[1743970447308,0.05091051,79531.0,79525.0,0.3608]
[1743970447517,0.05267052,79531.0,79525.0,0.3608]
[1743970448221,0.05267052,79531.0,79525.0,0.29799776]
[1743970448604,0.37899946,79530.0,79525.0,0.29799776]
[1743970448913,0.38070001,79530.0,79525.0,0.29799776]
[1743970449111,0.19480001,79530.0,79526.0,0.1944]
[1743970449313,0.0414233,79529.0,79526.0,0.1944]
[1743970449705,0.4022233,79529.0,79526.0,0.1944]
[1743970449906,0.3789,79528.0,79526.0,0.1944]
[1743970450116,0.38066001,79528.0,79526.0,0.1944]
[1743970450415,0.00118585,79527.0,79526.0,0.1944]
[1743970450610,0.36387693,79527.0,79526.0,0.1944]
[1743970450912,0.74814586,79527.0,79526.0,0.1944]
[1743970451115,0.74814586,79527.0,79526.0,0.13159776]
[1743970451712,0.89814586,79527.0,79526.0,0.13159776]
[1743970452308,0.89814586,79527.0,79525.0,0.002]
[1743970452703,0.89814586,79527.0,79519.0,8e-05]
[1743970452903,0.3608,79520.0,79517.0,0.22519653]
[1743970453103,0.5782,79519.0,79517.0,0.22519653]
[1743970453305,0.64162501,79519.0,79517.0,0.22519653]
[1743970454213,0.79162501,79519.0,79512.0,1.74587776]
[1743970454415,0.3608,79513.0,79512.0,1.74579776]
[1743970454608,0.36264,79513.0,79512.0,1.74579776]
[1743970454806,0.37806024,79513.0,79512.0,1.74579776]
[1743970456115,0.37820229,79513.0,79512.0,1.74579776]
[1743970456307,0.37819323,79513.0,79512.0,1.74579776]
[1743970456507,0.37806024,79513.0,79512.0,1.74579776]
[1743970456905,0.37906024,79513.0,79512.0,1.74779776]
[1743970457219,0.37906024,79513.0,79512.0,1.68499552]
[1743970457710,0.38006024,79513.0,79512.0,1.68499552]
[1743970458506,0.3608,79524.0,79512.0,1.68499552]
[1743970458707,0.06158501,79513.0,79512.0,1.86509552]
[1743970458898,0.06158501,79513.0,79512.0,1.88220388]
[1743970459203,0.06158501,79513.0,79512.0,1.70210388]
[1743970459403,0.42238501,79513.0,79512.0,1.70210388]
[1743970460406,0.42238501,79513.0,79512.0,1.63930164]
[1743970460812,0.42248924,79513.0,79512.0,1.63930164]
[1743970461012,0.42338501,79513.0,79512.0,1.63930164]
[1743970461218,0.60578501,79513.0,79512.0,1.63930164]
[1743970461405,0.80448501,79513.0,79512.0,1.63930164]
[1743970463402,0.80448501,79513.0,79512.0,1.5764994]
[1743970463907,0.80448501,79513.0,79512.0,1.55939104]
[1743970466412,0.80448501,79513.0,79512.0,1.4965888]
[1743970467315,0.80460462,79513.0,79512.0,1.4965888]
[1743970467619,0.80448501,79513.0,79512.0,1.4965888]
[1743970467917,0.80568502,79513.0,79512.0,1.4965888]
[1743970468512,0.60698502,79513.0,79512.0,1.4965888]
[1743970468821,0.42458502,79513.0,79512.0,1.4965888]
[1743970469226,0.42458502,79513.0,79512.0,1.8797888]
[1743970469522,0.00220001,79513.0,79512.0,1.96698656]
[1743970469725,0.001,79513.0,79512.0,1.96698656]
[1743970470621,0.001,79513.0,79512.0,1.81698656]
[1743970471023,0.3618,79513.0,79512.0,1.81698656]
[1743970471723,0.36300001,79513.0,79512.0,1.81698656]
[1743970471919,0.36300001,79513.0,79512.0,1.83406757]
[1743970472516,0.36300001,79513.0,79512.0,1.77126533]
[1743970472917,0.36300001,79513.0,79512.0,1.77126767]
[1743970474014,0.36300001,79513.0,79512.0,1.38806767]
[1743970475229,0.36300001,79513.0,79512.0,0.01908335]
[1743970475527,0.36300001,79513.0,79511.0,0.36497764]
[1743970476026,0.0011863,79512.0,79511.0,0.36497764]
[1743970476616,0.00238631,79512.0,79511.0,0.36497764]
[1743970476813,0.00238631,79512.0,79511.0,0.36597764]
[1743970477426,0.00238631,79512.0,79511.0,0.36497764]
[1743970477725,0.00338631,79512.0,79511.0,0.36597764]
[1743970477926,0.36988631,79512.0,79511.0,0.36597764]
[1743970478617,0.36988631,79512.0,79511.0,0.3031754]
[1743970479020,0.37088631,79512.0,79511.0,0.07797887]
[1743970481729,0.37088631,79512.0,79511.0,0.01517663]
[1743970482427,0.37104037,79512.0,79511.0,0.01517663]
[1743970482729,0.37088631,79512.0,79511.0,0.01517663]
[1743970483119,0.48332622,79512.0,79511.0,0.01517663]
[1743970483319,0.11682622,79512.0,79511.0,0.01517663]
[1743970483727,0.48952622,79512.0,79511.0,0.01517663]
[1743970484524,0.11682622,79512.0,79503.0,0.17890854]
[1743970484728,0.11682622,79512.0,79506.0,0.1887]
[1743970484925,0.7309,79511.0,79506.0,0.1887]
[1743970485323,0.00830449,79510.0,79506.0,0.1887]
[1743970486628,0.37840449,79510.0,79506.0,0.1887]
[1743970487029,0.37840449,79510.0,79503.0,0.30026204]
[1743970487214,0.3608,79504.0,79503.0,0.30026204]
[1743970487528,0.36200001,79504.0,79503.0,0.30026204]
[1743970487719,0.37520278,79504.0,79503.0,0.2374598]
[1743970487918,0.37505114,79504.0,79503.0,0.2374598]
[1743970488122,0.37505114,79504.0,79503.0,0.25455147]
[1743970489122,0.37505114,79504.0,79503.0,0.2374598]
[1743970489424,0.37605114,79504.0,79503.0,0.2374598]
[1743970489827,0.37705114,79504.0,79503.0,0.2374598]
[1743970490426,0.37705114,79504.0,79502.0,0.05287353]
[1743970490625,0.37705114,79504.0,79500.0,0.09015129]
[1743970491824,0.3868,79503.0,79500.0,0.15416395]
[1743970492025,0.38800001,79503.0,79500.0,0.15408395]
[1743970492240,0.01319918,79502.0,79501.0,0.1858]
[1743970492420,0.01438784,79502.0,79501.0,0.1858]
[1743970492622,0.40109085,79502.0,79501.0,0.1858]
[1743970493624,0.40109085,79502.0,79500.0,0.02726905]
[1743970493824,0.40209085,79502.0,79500.0,0.02726905]
[1743970495228,0.40309085,79502.0,79500.0,0.02726905]
[1743970495829,0.40209085,79502.0,79500.0,0.02726905]
[1743970496030,0.40309085,79502.0,79501.0,0.1809]
[1743970496727,0.40309085,79502.0,79501.0,0.11809776]
[1743970496927,0.40309085,79502.0,79501.0,0.31239776]
[1743970497123,0.21549085,79502.0,79501.0,0.31239776]
[1743970497325,0.0163802,79502.0,79501.0,0.31239776]
[1743970497530,0.01629085,79502.0,79501.0,0.31239776]
[1743970498930,0.01529085,79502.0,79501.0,0.31239776]
[1743970499131,0.01629085,79502.0,79501.0,0.31239776]
[1743970499737,0.01629085,79502.0,79501.0,0.24959552]
[1743970500432,0.21189085,79502.0,79501.0,0.24959552]
[1743970500630,0.01629085,79502.0,79501.0,0.44379552]
[1743970502032,0.01641347,79502.0,79501.0,0.44379552]
[1743970502227,0.01644618,79502.0,79501.0,0.44379552]
[1743970502428,0.0164514,79502.0,79501.0,0.44379552]
[1743970502622,0.01644387,79502.0,79501.0,0.44379552]
[1743970502934,0.01629085,79502.0,79501.0,0.38099328]
[1743970503438,0.01505084,79502.0,79501.0,0.38099328]
[1743970505129,0.01625085,79502.0,79501.0,0.38099328]
[1743970505329,0.01625085,79502.0,79500.0,0.02726905]
[1743970505632,0.3922,79501.0,79500.0,0.02726905]
[1743970505833,0.3922,79501.0,79498.0,0.02865235]